bitfinex/quotes_SOLUSD_20251024
["timestamp","ask_amount","ask_price","bid_price","bid_amount"]
[1761316111300,0.67,190.11,190.05,5.26177321]
[1761316111519,0.67,190.11,190.05,26.45107582]
[1761316111730,0.67,190.11,190.05,21.18930261]
[1761316112025,0.67,190.11,190.05,13.15443304]
[1761316112226,8.70486957,190.11,190.05,13.15443304]
[1761316112427,8.03486957,190.12,190.05,21.18930261]
[1761316112635,0.67,190.11,190.05,21.18930261]
[1761316113135,0.67,190.29,190.09,22.88]
[1761316113429,0.67,190.26,190.2,8.03486957]
[1761316113626,0.67,190.26,190.21,5.25734714]
[1761316114224,0.67,190.26,190.21,18.40071499]
[1761316115028,0.67,190.26,190.22,8.03486957]
[1761316115233,0.67,190.26,190.24,8.03486957]
[1761316115408,0.67,190.25,190.23,8.03486957]
[1761316115747,0.67,190.25,190.21,13.14336785]
[1761316116029,0.67,190.25,190.19,26.43751954]
[1761316116630,0.67,190.25,190.2,8.03486957]
[1761316116805,0.67,190.25,190.19,5.25789999]
[1761316117427,0.67,190.25,190.14,0.52592826]
[1761316117428,8.03486957,190.23,190.14,5.25928263]
[1761316117643,5.92627283,190.25,190.12,0.24260449]
[1761316117644,8.03486957,190.21,190.12,0.24260449]
[1761316117846,0.67,190.2,190.12,0.24260449]
[1761316118016,0.67,190.2,190.12,8.03486957]
[1761316118224,8.70486957,190.2,190.12,8.03486957]
[1761316118637,0.67,190.19,190.13,13.14839677]
[1761316118839,8.03486957,190.18,190.11,5.26011256]
[1761316119156,8.03486957,190.18,190.11,18.41039397]
[1761316119313,0.67,190.17,190.11,18.41039397]
[1761316119633,0.67,190.17,190.13,8.03486957]
[1761316119843,0.67,190.24,190.16,18.40555321]
[1761316120147,0.67,190.23,190.18,8.03486957]
[1761316120731,39.9,190.26,190.16,45.3250736]
[1761316120934,0.67,190.26,190.22,8.03486957]
[1761316121918,0.67,190.26,190.23,5.2567944]
[1761316122523,0.2,190.27,190.24,8.03486957]
[1761316122710,0.67,190.26,190.24,8.03486957]
[1761316122914,0.2,190.27,190.22,8.03486957]
[1761316123136,0.2,190.27,190.25,8.03486957]
[1761316123712,0.2,190.27,190.26,8.03486957]
[1761316123913,0.2,190.27,190.26,13.29083509]
[1761316124121,1e-08,190.27,190.26,13.91643164]
[1761316124322,1e-08,190.27,190.26,13.81643164]
[1761316124523,1e-08,190.27,190.26,13.29083509]
[1761316124925,1e-08,190.27,190.26,8.03486957]
[1761316125935,1e-08,190.27,190.26,13.29083509]
[1761316126150,1e-08,190.27,190.26,13.81643164]
[1761316126318,1e-08,190.27,190.26,13.91643164]
[1761316127659,0.2,190.34,190.33,8.03486957]
[1761316127828,0.2,190.34,190.33,13.28890203]
[1761316128226,0.2,190.34,190.33,5.25403246]
[1761316128543,0.2,190.34,190.33,13.28890203]
[1761316128718,0.2,190.34,190.33,5.25403246]
[1761316128918,0.2,190.34,190.33,13.28890203]
[1761316129333,0.2,190.34,190.33,13.91430527]
[1761316129535,1e-08,190.34,190.33,13.28890203]
[1761316130630,1e-08,190.34,190.29,22.88]
[1761316130631,0.66000001,190.34,190.29,5.25513689]
[1761316130931,0.66000001,190.34,190.31,8.03486957]
[1761316131130,0.66000001,190.34,190.32,8.03486957]
[1761316131332,1e-08,190.34,190.32,8.03486957]
[1761316131553,1e-08,190.34,190.3,0.52548607]
[1761316131741,1e-08,190.34,190.33,8.03486957]
[1761316131948,1e-08,190.34,190.33,13.28890203]
[1761316133667,1e-08,190.34,190.33,5.25403246]
[1761316133867,1e-08,190.34,190.33,13.28890203]
[1761316134041,1e-08,190.34,190.33,5.25403246]
[1761316136347,1e-08,190.35,190.34,0.1]
[1761316136541,1e-08,190.35,190.34,0.62537564]
[1761316136765,1e-08,190.35,190.34,0.52537564]
[1761316137277,0.2,190.46,190.34,0.62537564]
[1761316137465,0.67,190.45,190.43,8.03486957]
[1761316137674,0.67,190.45,190.36,22.88]
[1761316137844,8.70486957,190.45,190.38,8.03486957]
[1761316138048,8.70486957,190.45,190.39,5.2523767]
[1761316138257,0.2,190.46,190.39,13.28724627]
[1761316138258,0.67,190.44,190.39,13.28724627]
[1761316138564,0.67,190.44,190.38,5.25260974]
[1761316139369,0.67,190.44,190.39,8.03486957]
[1761316139687,0.67,190.44,190.38,5.25260974]
[1761316140039,0.67,190.44,190.39,8.03486957]
[1761316140276,0.67,190.44,190.38,13.28747931]
[1761316141065,0.67,190.44,190.38,5.25260974]
[1761316141585,8.70486957,190.44,190.37,8.03486957]
[1761316141773,0.67,190.43,190.37,8.03486957]
[1761316141957,0.67,190.43,190.36,18.38604813]
[1761316142284,0.67,190.43,190.38,5.25265258]
[1761316142662,0.67,190.43,190.39,8.03486957]
[1761316142893,0.67,190.43,190.38,18.38428405]
[1761316143171,0.67,190.43,190.33,22.88]
[1761316143172,0.67,190.43,190.36,5.25302126]
[1761316143345,0.67,190.43,190.36,26.42090196]
[1761316143548,0.67,190.43,190.37,8.03486957]
[1761316143766,0.67,190.43,190.36,18.38603239]
[1761316143972,0.67,190.43,190.38,8.03486957]
[1761316144166,0.67,190.43,190.34,18.38814751]
[1761316144361,0.67,190.43,190.37,8.03486957]
[1761316145079,0.67,190.43,190.34,18.38814751]
[1761316145279,8.70486957,190.43,190.37,8.03486957]
[1761316145491,8.03486957,190.42,190.36,8.03486957]
[1761316145659,0.67,190.42,190.37,8.03486957]
[1761316145859,0.67,190.41,190.37,8.03486957]
[1761316146055,0.67,190.41,190.36,5.25320445]
[1761316146255,0.67,190.41,190.36,13.28807402]
[1761316146471,8.70486957,190.41,190.36,5.25320445]
[1761316146676,8.03486957,190.39,190.31,13.13578728]
[1761316146861,8.03486957,190.39,190.33,8.03486957]
[1761316147055,8.03486957,190.36,190.31,13.13578728]
[1761316147461,8.03486957,190.36,190.26,8.03486957]
[1761316147462,8.03486957,190.33,190.26,8.03486957]
[1761316147658,0.67,190.35,190.28,8.03486957]
[1761316148187,8.03486957,190.32,190.27,5.25568928]
[1761316148359,5.92360182,190.35,190.2,48.84688619]
[1761316148360,8.03486957,190.3,190.24,5.25651808]
[1761316148562,8.70486957,190.29,190.24,5.25651808]
[1761316148764,0.67,190.29,190.24,5.25651808]
[1761316148971,0.67,190.28,190.18,22.88]
[1761316149176,0.67,190.28,190.23,8.03486957]
[1761316149377,0.67,190.28,190.24,8.03486957]
[1761316149658,33.75647521,190.34,190.25,8.03486957]
[1761316149659,0.67,190.3,190.25,8.03486957]
[1761316149969,39.4,190.32,190.27,8.03486957]
[1761316150169,0.67,190.31,190.28,13.29028264]
[1761316150478,0.67,190.31,190.28,26.42881532]
[1761316150652,0.67,190.33,190.28,23.66028092]
[1761316151754,0.67,190.33,190.29,5.26633517]
[1761316152150,0.67,190.33,190.3,5.25486074]
[1761316153782,5.26633517,190.32,190.25,13.13991728]
[1761316153959,5.26633517,190.3,190.25,13.13991728]
[1761316154151,5.26633517,190.29,190.19,26.28949997]
[1761316154354,5.26633517,190.31,190.19,31.55583514]
[1761316154579,0.67,190.3,190.19,54.43583514]
[1761316154777,0.67,190.3,190.2,0.1]
[1761316155083,0.67,190.29,190.21,22.88]
[1761316155262,0.67,190.29,190.26,5.26633517]
[1761316155461,0.67,190.29,190.21,22.88]
[1761316155683,0.67,190.29,190.25,5.26633517]
[1761316156162,0.67,190.29,190.26,18.39587932]
[1761316157087,5.93633517,190.29,190.24,5.25627567]
[1761316157388,5.26633517,190.28,190.24,5.25627567]
[1761316157569,45.19633517,190.28,190.21,5.26633517]
[1761316157761,45.19633517,190.28,190.18,22.88]
[1761316157762,5.26633517,190.26,190.18,5.25806919]
[1761316157962,5.26633517,190.26,190.19,5.26633517]
[1761316158180,0.67,190.25,190.2,10.52395872]
[1761316158682,0.67,190.25,190.2,5.25762355]
[1761316158859,0.67,190.25,190.2,23.6680176]
[1761316159178,0.67,190.25,190.22,5.26633517]
[1761316159789,5.26633517,190.29,190.22,5.26633517]
[1761316160093,0.67,190.29,190.25,5.25624178]
[1761316160274,44.50633517,190.3,190.25,5.25624178]
[1761316160462,0.67,190.28,190.25,5.25624178]
[1761316161094,0.67,190.31,190.27,5.26633517]
[1761316161261,0.67,190.3,190.25,5.25624178]
[1761316161462,0.67,190.3,190.27,5.26633517]
[1761316161679,0.67,190.3,190.28,5.26633517]
[1761316161981,0.67,190.33,190.29,5.26633517]
[1761316162280,0.67,190.33,190.3,10.52119591]
[1761316162604,0.67,190.33,190.31,5.26633517]
[1761316162944,0.67,190.35,190.32,5.26633517]
[1761316163485,39.18,190.37,190.33,5.26633517]
[1761316163702,0.67,190.36,190.32,5.26633517]
[1761316164196,0.67,190.36,190.33,23.6554488]
[1761316164361,0.67,190.36,190.33,18.38911363]
[1761316164561,0.67,190.36,190.33,23.6554488]
[1761316164880,39.18,190.4,190.34,5.26633517]
[1761316165066,0.67,190.39,190.34,5.26633517]
[1761316165269,0.67,190.39,190.33,23.6554488]
[1761316166473,0.67,190.39,190.34,5.26633517]
[1761316167880,0.67,190.39,190.35,5.26633517]
[1761316168392,0.67,190.39,190.36,5.25320445]
[1761316168772,0.67,190.39,190.36,18.38621558]
[1761316169184,0.67,190.39,190.36,23.65255075]
[1761316169391,0.67,190.39,190.36,18.38621558]
[1761316169891,0.67,190.39,190.31,44.6639693]
[1761316170978,0.67,190.39,190.35,5.26633517]
[1761316171477,0.67,190.39,190.36,5.26633517]
[1761316171978,0.67,190.39,190.31,44.7639693]
[1761316173612,0.67,190.39,190.31,44.6639693]
[1761316174295,0.67,190.39,190.35,5.26633517]
[1761316174683,0.67,190.39,190.31,18.39104618]
[1761316174897,0.67,190.39,190.33,5.26633517]
[1761316175107,0.67,190.39,190.34,5.26633517]
[1761316175313,39.85,190.39,190.34,5.26633517]
[1761316175512,0.67,190.39,190.34,5.26633517]
[1761316175709,5.92633517,190.38,190.31,5.25458462]
[1761316175911,0.66,190.38,190.32,5.26633517]
[1761316176093,0.66,190.37,190.33,10.52036763]
[1761316176413,0.66,190.37,190.33,5.25403246]
[1761316176894,0.66,190.37,190.33,23.6554488]
[1761316177306,0.66,190.37,190.34,5.26633517]
[1761316177813,0.66,190.37,190.33,5.25403246]
[1761316177996,0.66,190.37,190.33,10.52036763]
[1761316178192,0.66,190.37,190.33,23.6554488]
[1761316178812,0.66,190.37,190.34,5.26633517]
[1761316179215,0.66,190.37,190.33,18.38911363]
[1761316179597,0.66,190.37,190.34,5.26633517]
[1761316179802,0.66,190.37,190.36,5.26633517]
[1761316180008,0.66,190.37,190.36,10.51953962]
[1761316180992,0.66,190.37,190.36,5.25320445]
[1761316182422,0.66,190.4,190.36,5.25320445]
[1761316182718,39.82,190.42,190.39,5.26633517]
[1761316182923,0.66,190.41,190.39,5.26633517]
[1761316183093,0.66,190.41,190.36,18.38621558]
[1761316183298,0.66,190.41,190.37,5.26633517]
[1761316183700,0.66,190.41,190.34,5.26633517]
[1761316184424,0.66,190.41,190.37,5.2529285]
[1761316185211,0.66,190.41,190.38,5.26633517]
[1761316185415,0.66,190.41,190.4,5.26633517]
[1761316186306,39.16,190.42,190.41,5.251825]
[1761316186508,0.66,190.44,190.41,5.251825]
[1761316186699,0.2,190.46,190.33,22.98]
[1761316186900,0.2,190.46,190.34,48.42414842]
[1761316187101,0.2,190.46,190.43,5.26633517]
[1761316187322,0.86,190.46,190.45,5.26633517]
[1761316188007,0.86,190.46,190.42,5.26633517]
[1761316188215,0.66,190.45,190.42,5.26633517]
[1761316188427,0.66,190.45,190.43,5.25127343]
[1761316188913,0.66,190.45,190.44,5.26633517]
[1761316189428,0.2,190.46,190.44,5.26633517]
[1761316189924,0.92,190.46,190.44,5.26633517]
[1761316190299,0.72,190.45,190.44,5.26633517]
[1761316190506,0.72,190.45,190.44,10.51733285]
[1761316191117,0.2,190.46,190.44,10.51733285]
[1761316191710,0.92,190.46,190.44,10.51733285]
[1761316192316,0.2,190.46,190.44,10.51733285]
[1761316192511,0.92,190.46,190.44,5.25099768]
[1761316192831,0.92,190.46,190.45,5.26633517]
[1761316193934,0.2,190.46,190.45,5.26633517]
[1761316194426,0.92,190.46,190.4,26.25941321]
[1761316194632,0.72,190.45,190.43,5.26633517]
[1761316195608,0.72,190.45,190.44,5.25099768]
[1761316196311,0.72,190.45,190.42,5.26633517]
[1761316197332,0.72,190.45,190.39,13.13030903]
[1761316197532,0.72,190.45,190.43,5.26633517]
[1761316198825,0.72,190.45,190.43,2.29468783]
[1761316199817,0.72,190.45,190.41,5.251825]
[1761316200020,0.72,190.45,190.42,2.29468783]
[1761316200214,0.72,190.45,190.41,18.38138752]
[1761316200215,0.72,190.45,190.32,26.37111256]
[1761316200530,0.72,190.45,190.41,2.29468783]
[1761316200727,0.72,190.45,190.36,22.88]
[1761316200921,22.88,190.44,190.32,26.27111256]
[1761316201126,2.29468783,190.42,190.35,2.29468783]
[1761316201317,25.17468783,190.4,190.31,18.39104618]
[1761316201517,2.29468783,190.37,190.31,5.25458462]
[1761316201717,10.87647521,190.39,190.23,26.28393013]
[1761316201718,2.29468783,190.34,190.23,26.28393013]
[1761316201926,2.99468783,190.33,190.26,2.29468783]
[1761316202145,0.7,190.33,190.23,26.28393013]
[1761316202320,2.29468783,190.31,190.23,26.28393013]
[1761316202525,0.7,190.3,190.23,26.28393013]
[1761316202723,39.82,190.34,190.29,2.29468783]
[1761316202922,39.82,190.34,190.27,2.29468783]
[1761316203133,2.99468783,190.33,190.26,2.29468783]
[1761316203442,0.7,190.33,190.29,2.29468783]
[1761316203825,0.7,190.33,190.31,2.29468783]
[1761316204223,39.12,190.34,190.32,2.29468783]
[1761316204518,369.0,190.62,190.3,18.3920126]
[1761316204519,0.7,190.36,190.33,2.29468783]
[1761316204723,0.7,190.36,190.3,18.3920126]
[1761316205235,0.7,190.36,190.33,5.26322387]
[1761316205645,0.7,190.36,190.32,5.26322387]
[1761316205953,0.7,190.36,190.23,0.1]
[1761316206118,5.26322387,190.35,190.21,57.62071499]
[1761316206322,5.26322387,190.35,190.28,5.26322387]
[1761316206537,0.7,190.34,190.24,22.88]
[1761316206744,0.7,190.34,190.21,18.40071499]
[1761316206745,5.26322387,190.3,190.23,5.26322387]
[1761316207539,0.7,190.3,190.23,5.26322387]
[1761316207738,0.7,190.3,190.26,5.25596552]
[1761316207944,5.26322387,190.28,190.24,5.25651808]
[1761316208151,5.26322387,190.27,190.22,13.14262448]
[1761316208360,0.7,190.26,190.18,13.14489491]
[1761316208568,5.26322387,190.24,190.18,13.14489491]
[1761316209046,0.7,190.23,190.18,13.14489491]
[1761316209444,22.88,190.25,190.21,5.26322387]
[1761316209642,22.88,190.25,190.19,0.1]
[1761316209643,22.88,190.27,190.23,5.26322387]
[1761316209869,23.58,190.27,190.24,5.25651808]
[1761316210034,28.14322387,190.25,190.16,5.25872949]
[1761316210232,28.14322387,190.21,190.16,18.40555321]
[1761316210544,5.26322387,190.2,190.16,5.25872949]
[1761316210749,0.7,190.2,190.16,13.27394016]
[1761316210964,0.7,190.19,190.16,5.25872949]
[1761316211827,0.7,190.19,190.15,21.16262785]
[1761316212031,0.7,190.19,190.15,13.14741718]
[1761316212229,0.7,190.19,190.17,8.01521067]
[1761316212532,0.7,190.21,190.18,8.01521067]
[1761316213134,0.7,190.21,190.15,13.14741718]
[1761316213358,39.12,190.24,190.15,13.14741718]
[1761316213359,0.7,190.24,190.2,8.01521067]
[1761316213533,0.7,190.23,190.15,13.14741718]
[1761316213738,0.7,190.23,190.19,8.01521067]
[1761316213939,0.7,190.23,190.2,5.25762355]
[1761316214360,0.7,190.23,190.2,18.40168243]
[1761316214743,0.7,190.23,190.2,5.25762355]
[1761316215735,0.7,190.23,190.2,18.40168243]
[1761316216155,0.7,190.23,190.2,5.25762355]
[1761316217356,103.3,190.29,190.22,8.01521067]
[1761316217658,103.3,190.29,190.21,0.1]
[1761316217659,0.7,190.29,190.27,8.01521067]
[1761316217858,8.01521067,190.33,190.27,13.27089995]
[1761316217859,0.7,190.28,190.27,13.27089995]
[1761316218058,103.3,190.36,190.27,5.25568928]
[1761316218059,0.7,190.36,190.27,5.25568928]
[1761316218361,5.25208893,190.41,190.27,5.25568928]
[1761316218362,0.7,190.35,190.31,8.01521067]
[1761316218557,0.7,190.35,190.3,8.01521067]
[1761316218735,8.01521067,190.32,190.13,0.1]
[1761316218930,10.87647521,190.3,190.2,8.01521067]
[1761316219150,11.57647521,190.33,190.19,8.01521067]
[1761316219340,11.57647521,190.33,190.2,22.98]
[1761316219341,8.72521067,190.32,190.2,22.98]
[1761316219550,8.72521067,190.32,190.25,8.01521067]
[1761316219855,8.01521067,190.27,190.2,8.01521067]
[1761316220062,8.01521067,190.27,190.21,26.41592566]
[1761316220246,8.72521067,190.26,190.21,18.40071499]
[1761316220555,8.72521067,190.26,190.21,5.25734714]
[1761316220755,8.72521067,190.25,190.21,5.25734714]
[1761316220961,0.71,190.25,190.21,5.25734714]
[1761316221142,10.87647521,190.29,190.24,8.01521067]
[1761316221346,0.71,190.36,190.24,8.01521067]
[1761316221347,0.71,190.32,190.25,39.12]
[1761316221533,8.01521067,190.39,190.31,8.01521067]
[1761316221732,0.71,190.42,190.31,8.01521067]
[1761316221937,8.01521067,190.38,190.34,5.25375643]
[1761316222164,0.71,190.41,190.32,5.25430853]
[1761316222458,0.71,190.4,190.35,8.01521067]
[1761316222759,0.71,190.4,190.36,8.01521067]
[1761316223159,0.71,190.4,190.35,8.01521067]
[1761316223838,0.71,190.4,190.36,8.01521067]
[1761316224039,0.71,190.4,190.35,8.01521067]
[1761316224363,8.01521067,190.36,190.29,8.01521067]
[1761316224538,8.01521067,190.35,190.28,8.01521067]
[1761316224745,10.87647521,190.39,190.3,8.01521067]
[1761316225044,0.71,190.36,190.31,8.01521067]
[1761316225533,0.71,190.36,190.29,8.01521067]
[1761316225738,8.01521067,190.35,190.25,83.77805517]
[1761316225960,8.72521067,190.34,190.28,8.01521067]
[1761316226257,8.01521067,190.32,190.28,5.25541307]
[1761316226458,0.71,190.33,190.28,5.25541307]
[1761316226655,0.71,190.33,190.28,13.27062374]
[1761316227036,0.71,190.33,190.28,5.25541307]
[1761316227259,8.72521067,190.33,190.28,18.39394575]
[1761316227661,22.88,190.36,190.28,26.40915642]
[1761316227662,0.71,190.32,190.28,26.40915642]
[1761316228051,0.71,190.32,190.25,18.39684624]
[1761316228252,0.71,190.32,190.28,8.01521067]
[1761316228648,0.71,190.32,190.25,18.39684624]
[1761316228847,8.01521067,190.3,190.25,18.39684624]
[1761316229161,0.71,190.32,190.25,18.39684624]
[1761316229334,0.71,190.31,190.25,18.39684624]
[1761316229534,8.01521067,190.29,190.25,5.25624178]
[1761316229740,8.72521067,190.31,190.25,13.27145245]
[1761316230052,0.71,190.3,190.25,5.25624178]
[1761316230361,0.71,190.3,190.25,26.41205691]
[1761316230953,0.71,190.3,190.27,8.01521067]
[1761316231371,0.71,190.3,190.25,18.39684624]
[1761316231542,0.71,190.3,190.26,8.01521067]
[1761316231741,0.71,190.3,190.25,18.39684624]
[1761316231946,8.72521067,190.3,190.25,5.25624178]
[1761316232159,8.72521067,190.3,190.23,5.2567944]
[1761316232160,8.01521067,190.28,190.23,5.2567944]
[1761316232360,8.01521067,190.24,190.14,5.25928263]
[1761316232547,8.01521067,190.2,190.15,13.14698598]
[1761316232858,0.71,190.19,190.16,8.01521067]
[1761316233159,0.71,190.19,190.14,5.25928263]
[1761316233160,0.71,190.19,190.14,26.42269988]
[1761316233762,0.71,190.19,190.13,0.1]
[1761316233976,8.01521067,190.14,190.13,0.1]
[1761316234479,0.7,190.14,190.13,0.1]
[1761316235875,0.7,190.14,190.13,5.35955924]
[1761316236079,0.7,190.14,190.13,0.1]
[1761316237461,8.71521067,190.14,190.13,0.1]
[1761316238284,0.7,190.14,190.13,5.35955924]
[1761316238784,8.71521067,190.14,190.13,0.1]
[1761316239683,0.7,190.14,190.13,5.35955924]
[1761316240073,0.7,190.14,190.13,0.1]
[1761316240566,8.71521067,190.14,190.13,0.1]
[1761316241834,22.88,190.16,190.13,0.1]
[1761316241835,8.01521067,190.15,190.13,5.35955924]
[1761316241983,0.7,190.14,190.13,0.1]
[1761316242172,8.71521067,190.14,190.13,0.1]
[1761316242372,8.71521067,190.14,190.0,5.26315789]
[1761316242373,22.88,190.11,190.0,5.26315789]
[1761316242677,8.01521067,190.09,190.02,21.17118173]
[1761316242879,8.71521067,190.1,190.03,8.01521067]
[1761316243062,8.71521067,190.1,190.02,13.15597106]
[1761316243063,8.71521067,190.1,190.02,13.45597106]
[1761316243268,22.88,190.11,190.05,8.01521067]
[1761316243466,40.15223068,190.25,190.09,8.01521067]
[1761316243467,0.7,190.16,190.09,8.01521067]
[1761316243678,0.7,190.16,190.03,0.3]
[1761316243679,39.1,190.17,190.13,8.01521067]
[1761316243881,0.7,190.24,190.16,8.01521067]
[1761316244076,8.01521067,190.22,190.15,8.01521067]
[1761316244281,8.01521067,190.22,190.16,5.25872949]
[1761316244480,0.7,190.23,190.18,8.01521067]
[1761316244682,0.7,190.22,190.17,8.01521067]
[1761316244881,0.7,190.22,190.16,18.40555321]
[1761316245073,0.7,190.22,190.17,8.01521067]
[1761316245695,0.7,190.22,190.16,18.40555321]
[1761316245893,0.7,190.22,190.13,5.25955924]
[1761316245894,8.01521067,190.19,190.13,5.25955924]
[1761316246091,8.01521067,190.21,190.15,8.01521067]
[1761316246294,8.01521067,190.2,190.14,8.01521067]
[1761316246477,0.7,190.2,190.15,8.01521067]
[1761316247089,8.71521067,190.2,190.15,8.01521067]
[1761316247287,0.7,190.2,190.15,8.01521067]
[1761316247488,8.71521067,190.2,190.15,8.01521067]
[1761316247723,0.7,190.2,190.16,8.01521067]
[1761316247875,8.71521067,190.2,190.15,8.01521067]
[1761316248078,0.7,190.2,190.16,8.01521067]
[1761316248293,0.7,190.2,190.17,5.25845296]
[1761316248692,8.71521067,190.2,190.17,5.25845296]
[1761316249004,8.71521067,190.2,190.15,13.14729212]
[1761316249005,8.01521067,190.19,190.14,8.01521067]
[1761316249323,0.7,190.19,190.14,8.01521067]
[1761316249485,0.7,190.19,190.16,8.01521067]
[1761316250600,0.7,190.19,190.17,5.25845296]
[1761316251110,0.7,190.19,190.17,4.75845296]
[1761316251608,8.69521067,190.21,190.16,18.4052653]
[1761316251806,0.68,190.2,190.16,18.4052653]
[1761316252396,8.69521067,190.2,190.16,18.4052653]
[1761316252913,147.65661119,190.24,190.16,18.4052653]
[1761316252914,8.69521067,190.19,190.16,18.4052653]
[1761316253605,0.68,190.19,190.16,13.14653581]
[1761316253995,8.69521067,190.19,190.15,5.25900604]
[1761316254203,8.01521067,190.16,190.15,5.25900604]
[1761316254591,8.69521067,190.16,190.15,5.25900604]
[1761316255695,8.69521067,190.16,190.13,13.14839057]
[1761316256019,0.68,190.16,190.13,13.14839057]
[1761316256204,0.68,190.15,190.13,13.14839057]
[1761316256597,39.08,190.2,190.13,13.14839057]
[1761316256598,0.68,190.19,190.13,13.14839057]
[1761316256800,8.01521067,190.18,190.13,13.14839057]
[1761316257211,0.69,190.17,190.13,13.14839057]
[1761316257499,0.69,190.17,190.1,0.3]
[1761316257500,0.69,190.17,190.1,13.15037576]
[1761316257817,8.01521067,190.11,190.06,5.26149636]
[1761316258025,39.08,190.14,190.06,5.26149636]
[1761316258406,8.01521067,190.08,190.06,5.26149636]
[1761316258710,0.69,190.13,190.06,5.26149636]
[1761316258711,8.01521067,190.09,190.06,18.41523728]
[1761316258907,8.01521067,190.09,190.06,5.26149636]
[1761316259431,8.01521067,190.07,190.04,5.26198045]
[1761316259723,8.01521067,190.05,190.0,13.15760582]
[1761316260034,8.01521067,190.05,189.99,5.26343491]
[1761316260035,8.01521067,190.04,189.99,5.26343491]
[1761316260317,8.01521067,190.06,190.0,8.01521067]
[1761316260527,8.01521067,190.03,189.95,0.4]
[1761316260710,0.69,190.02,189.97,8.01521067]
[1761316260891,0.69,190.02,189.96,13.27947683]
[1761316261094,8.70521067,190.02,189.96,5.26426616]
[1761316261291,0.69,190.02,189.96,13.27947683]
[1761316261604,8.70521067,190.02,189.96,26.44014223]
[1761316261802,8.01521067,190.01,189.96,5.26426616]
[1761316262003,8.70521067,190.01,189.96,18.42493156]
[1761316262230,8.70521067,190.01,189.95,8.11521067]
[1761316262231,0.69,190.0,189.95,0.1]
[1761316262418,8.01521067,189.96,189.95,0.1]
[1761316262614,8.01521067,189.96,189.93,0.1]
[1761316262615,8.01521067,189.94,189.93,5.36509766]
[1761316262831,0.69,189.97,189.93,5.36509766]
[1761316263115,8.01521067,189.96,189.93,5.365051]
[1761316263299,10.87647521,190.05,189.93,5.365051]
[1761316263500,8.01521067,190.02,189.96,8.01521067]
[1761316263711,8.01521067,190.01,189.98,5.26371196]
[1761316263910,0.69,190.01,189.94,5.26479971]
[1761316264222,0.69,190.0,189.94,5.26479971]
[1761316264418,8.01521067,189.99,189.94,5.26479971]
[1761316264626,8.70521067,190.0,189.94,26.44206155]
[1761316264798,33.75647521,190.05,189.95,0.4]
[1761316264799,0.69,190.04,189.95,0.4]
[1761316264998,8.01521067,189.98,189.94,18.42685088]
[1761316265198,8.01521067,189.99,189.94,5.26479971]
[1761316265421,8.01521067,190.0,189.94,18.82685088]
[1761316265612,8.01521067,190.0,189.94,26.44206155]
[1761316266298,0.69,190.05,189.95,0.4]
[1761316266498,8.01521067,190.03,189.95,0.4]
[1761316266727,8.01521067,190.02,189.94,41.30685088]
[1761316266902,8.01521067,190.0,189.94,13.28001038]
[1761316267102,8.01521067,190.01,189.95,8.01521067]
[1761316267301,8.01521067,190.01,189.94,5.26479971]
[1761316267302,0.69,190.06,189.98,8.01521067]
[1761316267524,0.69,190.06,189.96,0.4]
[1761316267525,22.88,190.08,189.96,0.4]
[1761316267733,22.88,190.08,189.99,8.01521067]
[1761316267734,8.01521067,190.05,189.99,8.01521067]
[1761316268037,8.01521067,190.02,190.0,18.42105262]
[1761316268202,8.01521067,190.03,190.0,18.42105262]
[1761316268522,0.69,190.08,190.0,26.43626329]
[1761316268732,0.69,190.07,190.0,18.42105262]
[1761316268928,8.01521067,190.06,190.0,26.43626329]
[1761316269104,36.81932744,190.14,190.01,0.4]
[1761316269105,0.69,190.12,190.01,0.4]
[1761316269421,8.01521067,190.1,190.04,8.01521067]
[1761316269630,0.69,190.12,190.01,0.4]
[1761316269631,0.69,190.12,190.05,8.01521067]